[Event "Titled Tuesday Blitz June 13 Early 2023"]
[White "Bashirli, Saadat"]
[Black "Skliarov, Viktor"]
[WhiteFideId "13429990"]
[BlackFideId "14106736"]
[WhiteElo "1408"]
[BlackElo "2317"]
[Result "1/2-1/2"]
[Round "3"]
[TimeControl "180+2"]
[Date "2023.06.13"]
[WhiteClock "0:00:03"]
[BlackClock "0:00:05"]
[Board "139"]

1. d4 {[%clk 0:03:00]}  Nf6 {[%clk 0:02:59]} 2. e3 {[%clk 0:02:59]}  g6 {[%clk 0:02:59]} 3. f4 {[%clk 0:02:59]}  Bg7 {[%clk 0:03:00]} 4. Bd3 {[%clk 0:02:58]}  O-O {[%clk 0:02:58]} 5. Nf3 {[%clk 0:02:58]}  d6 {[%clk 0:02:58]} 6. O-O {[%clk 0:02:57]}  c5 {[%clk 0:02:58]} 7. c3 {[%clk 0:02:57]}  b6 {[%clk 0:02:56]} 8. Nbd2 {[%clk 0:02:56]}  Ba6 {[%clk 0:02:55]} 9. Bxa6 {[%clk 0:02:52]}  Nxa6 {[%clk 0:02:55]} 10. Qe2 {[%clk 0:02:53]}  Nc7 {[%clk 0:02:53]} 11. e4 {[%clk 0:02:52]}  cxd4 {[%clk 0:02:21]} 12. cxd4 {[%clk 0:02:51]}  Rc8 {[%clk 0:02:21]} 13. b3 {[%clk 0:02:49]}  Qd7 {[%clk 0:02:12]} 14. Bb2 {[%clk 0:02:47]}  Qb5 {[%clk 0:01:38]} 15. Qxb5 {[%clk 0:02:43]}  Nxb5 {[%clk 0:01:37]} 16. Rac1 {[%clk 0:02:43]}  h6 {[%clk 0:01:21]} 17. a4 {[%clk 0:02:34]}  Nc7 {[%clk 0:01:21]} 18. Kf2 {[%clk 0:02:26]}  Ne6 {[%clk 0:01:11]} 19. g3 {[%clk 0:02:05]}  d5 {[%clk 0:00:55]} 20. e5 {[%clk 0:02:01]}  Ne4+ {[%clk 0:00:55]} 21. Nxe4 {[%clk 0:01:59]}  dxe4 {[%clk 0:00:55]} 22. Nd2 {[%clk 0:01:55]}  Rcd8 {[%clk 0:00:52]} 23. Ke3 {[%clk 0:01:53]}  f5 {[%clk 0:00:52]} 24. Rc6 {[%clk 0:01:47]}  Kf7 {[%clk 0:00:50]} 25. Rfc1 {[%clk 0:01:40]}  Rd5 {[%clk 0:00:48]} 26. b4 {[%clk 0:01:29]}  Rfd8 {[%clk 0:00:47]} 27. Nb3 {[%clk 0:01:28]}  g5 {[%clk 0:00:46]} 28. b5 {[%clk 0:01:10]}  gxf4+ {[%clk 0:00:42]} 29. gxf4 {[%clk 0:01:09]}  h5 {[%clk 0:00:43]} 30. R1c2 {[%clk 0:01:01]}  Bh6 {[%clk 0:00:42]} 31. Rxe6 {[%clk 0:00:57]}  Bxf4+ {[%clk 0:00:27]} 32. Kxf4 {[%clk 0:00:56]}  Kxe6 {[%clk 0:00:28]} 33. Rc6+ {[%clk 0:00:51]}  Kd7 {[%clk 0:00:19]} 34. Kxf5 {[%clk 0:00:42]}  e3 {[%clk 0:00:19]} 35. Ke4 {[%clk 0:00:35]}  e2 {[%clk 0:00:19]} 36. Bc3 {[%clk 0:00:32]}  e6 {[%clk 0:00:18]} 37. Bb4 {[%clk 0:00:30]}  Rg8 {[%clk 0:00:16]} 38. Rc1 {[%clk 0:00:26]}  Rg2 {[%clk 0:00:15]} 39. h3 {[%clk 0:00:18]}  Rg3 {[%clk 0:00:15]} 40. Nd2 {[%clk 0:00:16]}  Rxh3 {[%clk 0:00:15]} 41. Nf3 {[%clk 0:00:14]}  Rg3 {[%clk 0:00:14]} 42. Rh1 {[%clk 0:00:12]}  h4 {[%clk 0:00:09]} 43. Rxh4 {[%clk 0:00:12]}  Kc8 {[%clk 0:00:03]} 44. Rh8+ {[%clk 0:00:11]}  Kb7 {[%clk 0:00:03]} 45. Rh7+ {[%clk 0:00:07]}  Kc8 {[%clk 0:00:02]} 46. Rh8+ {[%clk 0:00:05]}  Kb7 {[%clk 0:00:03]} 47. Rh1 {[%clk 0:00:01]}  Rd7 {[%clk 0:00:02]} 48. Rc1 {[%clk 0:00:02]}  Rg2 {[%clk 0:00:03]} 49. Ke3 {[%clk 0:00:01]}  Rh7 {[%clk 0:00:02]} 50. Re1 {[%clk 0:00:02]}  Rh3 {[%clk 0:00:02]} 51. Rxe2 {[%clk 0:00:02]}  Rgg3 {[%clk 0:00:02]} 52. Rf2 {[%clk 0:00:02]}  a5 {[%clk 0:00:03]} 53. Bc3 {[%clk 0:00:01]}  Rg4 {[%clk 0:00:03]} 54. Bd2 {[%clk 0:00:02]}  Rgg3 {[%clk 0:00:04]} 55. Bc3 {[%clk 0:00:02]}  Rg4 {[%clk 0:00:04]} 56. Bb2 {[%clk 0:00:02]}  Rgg3 {[%clk 0:00:05]} 57. Bc3 {[%clk 0:00:03]} 1/2-1/2


[Site "https://www.chess.com"]

[Event "Titled Tuesday Blitz June 13 Early 2023"]
[White "Garrido, Denis"]
[Black "Shuvalov, Evgenij"]
[WhiteFideId "601217"]
[BlackFideId "4187237"]
[WhiteElo "2324"]
[BlackElo "2080"]
[Result "1-0"]
[Round "3"]
[TimeControl "180+2"]
[Date "2023.06.13"]
[WhiteClock "0:00:18"]
[BlackClock "0:00:00"]
[Board "141"]

1. e4 {[%clk 0:03:00]}  e6 {[%clk 0:02:59]} 2. d4 {[%clk 0:03:00]}  d5 {[%clk 0:03:00]} 3. exd5 {[%clk 0:03:00]}  exd5 {[%clk 0:03:00]} 4. Nf3 {[%clk 0:03:00]}  Nf6 {[%clk 0:02:59]} 5. Bd3 {[%clk 0:03:00]}  c5 {[%clk 0:02:59]} 6. O-O {[%clk 0:03:00]}  c4 {[%clk 0:02:57]} 7. Re1+ {[%clk 0:03:00]}  Be7 {[%clk 0:02:57]} 8. Bf1 {[%clk 0:03:00]}  O-O {[%clk 0:02:56]} 9. b3 {[%clk 0:03:01]}  cxb3 {[%clk 0:02:56]} 10. axb3 {[%clk 0:03:02]}  Nc6 {[%clk 0:02:57]} 11. Ne5 {[%clk 0:03:01]}  Nxe5 {[%clk 0:02:52]} 12. dxe5 {[%clk 0:02:57]}  Ne4 {[%clk 0:02:52]} 13. Bd3 {[%clk 0:02:56]}  Bb4 {[%clk 0:02:22]} 14. c3 {[%clk 0:02:53]}  Bc5 {[%clk 0:02:14]} 15. Be3 {[%clk 0:02:52]}  Bxe3 {[%clk 0:02:11]} 16. Rxe3 {[%clk 0:02:51]}  Be6 {[%clk 0:02:03]} 17. Nd2 {[%clk 0:02:21]}  Nxd2 {[%clk 0:01:49]} 18. Qxd2 {[%clk 0:02:20]}  Qg5 {[%clk 0:01:36]} 19. Ra4 {[%clk 0:02:01]}  h6 {[%clk 0:01:29]} 20. f4 {[%clk 0:01:59]}  Qh5 {[%clk 0:01:20]} 21. Be2 {[%clk 0:01:33]}  Bg4 {[%clk 0:01:15]} 22. Bxg4 {[%clk 0:01:25]}  Qxg4 {[%clk 0:01:16]} 23. Qxd5 {[%clk 0:01:18]}  Rad8 {[%clk 0:01:14]} 24. Qf3 {[%clk 0:01:18]}  Rd1+ {[%clk 0:01:10]} 25. Kf2 {[%clk 0:01:18]}  Qd7 {[%clk 0:01:02]} 26. Re2 {[%clk 0:01:10]}  b5 {[%clk 0:00:56]} 27. Raa2 {[%clk 0:01:07]}  a5 {[%clk 0:00:54]} 28. Qe4 {[%clk 0:01:03]}  Qa7+ {[%clk 0:00:45]} 29. Kg3 {[%clk 0:01:01]}  Rfd8 {[%clk 0:00:45]} 30. Kh3 {[%clk 0:00:51]}  Qd7+ {[%clk 0:00:39]} 31. e6 {[%clk 0:00:44]}  fxe6 {[%clk 0:00:30]} 32. Qxe6+ {[%clk 0:00:42]}  Qxe6+ {[%clk 0:00:30]} 33. Rxe6 {[%clk 0:00:43]}  R8d3+ {[%clk 0:00:30]} 34. g3 {[%clk 0:00:44]}  Rxc3 {[%clk 0:00:30]} 35. Rxa5 {[%clk 0:00:43]}  Rxb3 {[%clk 0:00:26]} 36. Ra7 {[%clk 0:00:41]}  Rd8 {[%clk 0:00:17]} 37. Ree7 {[%clk 0:00:39]}  g5 {[%clk 0:00:16]} 38. f5 {[%clk 0:00:38]}  Rf3 {[%clk 0:00:15]} 39. Kg4 {[%clk 0:00:37]}  Rf2 {[%clk 0:00:15]} 40. Rg7+ {[%clk 0:00:35]}  Kh8 {[%clk 0:00:15]} 41. Rh7+ {[%clk 0:00:34]}  Kg8 {[%clk 0:00:15]} 42. Rxh6 {[%clk 0:00:35]}  Rd4+ {[%clk 0:00:14]} 43. Kxg5 {[%clk 0:00:34]}  Rd5 {[%clk 0:00:13]} 44. Kg6 {[%clk 0:00:32]}  Rd6+ {[%clk 0:00:13]} 45. Kg5 {[%clk 0:00:32]}  Rxh6 {[%clk 0:00:12]} 46. Kxh6 {[%clk 0:00:30]}  Rxf5 {[%clk 0:00:13]} 47. g4 {[%clk 0:00:27]}  Rc5 {[%clk 0:00:12]} 48. h4 {[%clk 0:00:24]}  Rc4 {[%clk 0:00:12]} 49. Kh5 {[%clk 0:00:24]}  b4 {[%clk 0:00:11]} 50. Rb7 {[%clk 0:00:23]}  Kf8 {[%clk 0:00:10]} 51. g5 {[%clk 0:00:24]}  Ke8 {[%clk 0:00:08]} 52. g6 {[%clk 0:00:24]}  Kf8 {[%clk 0:00:07]} 53. Kg5 {[%clk 0:00:20]}  Rc5+ {[%clk 0:00:05]} 54. Kh6 {[%clk 0:00:20]}  Rc4 {[%clk 0:00:00]} 55. g7+ {[%clk 0:00:18]} 1-0


[Site "https://www.chess.com"]

[Event "Titled Tuesday Blitz June 13 Early 2023"]
[White "Portela Peleteiro, Alberto"]
[Black "Bashkansky, Ethan"]
[WhiteFideId "22276106"]
[BlackFideId "2071533"]
[WhiteElo "2353"]
[BlackElo "2310"]
[Result "1-0"]
[Round "3"]
[TimeControl "180+2"]
[Date "2023.06.13"]
[WhiteClock "0:01:30"]
[BlackClock "0:00:00"]
[Board "142"]

1. e4 {[%clk 0:03:00]}  c6 {[%clk 0:02:59]} 2. d4 {[%clk 0:03:00]}  d5 {[%clk 0:03:00]} 3. exd5 {[%clk 0:03:01]}  cxd5 {[%clk 0:03:00]} 4. Bd3 {[%clk 0:03:02]}  Nc6 {[%clk 0:03:00]} 5. c3 {[%clk 0:03:02]}  Nf6 {[%clk 0:03:00]} 6. Bf4 {[%clk 0:03:02]}  g6 {[%clk 0:02:59]} 7. Nf3 {[%clk 0:02:59]}  Bf5 {[%clk 0:02:50]} 8. Bxf5 {[%clk 0:02:57]}  gxf5 {[%clk 0:02:51]} 9. O-O {[%clk 0:02:58]}  e6 {[%clk 0:02:48]} 10. Re1 {[%clk 0:02:54]}  Bd6 {[%clk 0:02:37]} 11. Ne5 {[%clk 0:02:53]}  Qc7 {[%clk 0:02:29]} 12. Nd2 {[%clk 0:02:50]}  O-O-O {[%clk 0:02:19]} 13. Bg5 {[%clk 0:02:35]}  Ne4 {[%clk 0:02:08]} 14. Bxd8 {[%clk 0:02:22]}  Rxd8 {[%clk 0:02:08]} 15. Nxe4 {[%clk 0:01:59]}  fxe4 {[%clk 0:01:36]} 16. f4 {[%clk 0:01:59]}  Rg8 {[%clk 0:01:05]} 17. Kh1 {[%clk 0:01:49]}  Ne7 {[%clk 0:00:35]} 18. Qh5 {[%clk 0:01:42]}  f6 {[%clk 0:00:22]} 19. Qxh7 {[%clk 0:01:42]}  fxe5 {[%clk 0:00:09]} 20. fxe5 {[%clk 0:01:43]}  Bxe5 {[%clk 0:00:02]} 21. dxe5 {[%clk 0:01:44]}  Rg5 {[%clk 0:00:02]} 22. Rf1 {[%clk 0:01:36]}  Kd7 {[%clk 0:00:02]} 23. Rf7 {[%clk 0:01:35]}  Qd8 {[%clk 0:00:02]} 24. Raf1 {[%clk 0:01:32]}  Rxe5 {[%clk 0:00:02]} 25. Rxe7+ {[%clk 0:01:32]}  Qxe7 {[%clk 0:00:02]} 26. Rf7 {[%clk 0:01:33]}  Qxf7 {[%clk 0:00:02]} 27. Qxf7+ {[%clk 0:01:34]}  Kc6 {[%clk 0:00:03]} 28. Qe8+ {[%clk 0:01:30]}  Kd6 {[%clk 0:00:00]} 29. Qb8+ {[%clk 0:01:30]} 1-0


[Site "https://www.chess.com"]

[Event "Titled Tuesday Blitz June 13 Early 2023"]
[White "ATM622"]
[Black "Wieczorek, Zbigniew"]
[BlackFideId "1102001"]
[WhiteElo "2568"]
[BlackElo "2306"]
[Result "1-0"]
[Round "3"]
[TimeControl "180+2"]
[Date "2023.06.13"]
[WhiteClock "0:02:26"]
[BlackClock "0:02:12"]
[Board "143"]

1. d4 {[%clk 0:03:00]}  Nf6 {[%clk 0:02:59]} 2. c4 {[%clk 0:03:01]}  g6 {[%clk 0:02:59]} 3. g3 {[%clk 0:03:01]}  Bg7 {[%clk 0:03:00]} 4. Bg2 {[%clk 0:03:02]}  d6 {[%clk 0:03:00]} 5. Nf3 {[%clk 0:03:02]}  O-O {[%clk 0:03:01]} 6. O-O {[%clk 0:03:01]}  Nbd7 {[%clk 0:03:01]} 7. Nc3 {[%clk 0:03:01]}  e5 {[%clk 0:03:00]} 8. e4 {[%clk 0:02:59]}  Re8 {[%clk 0:03:00]} 9. Re1 {[%clk 0:02:55]}  exd4 {[%clk 0:03:00]} 10. Nxd4 {[%clk 0:02:54]}  Nc5 {[%clk 0:03:00]} 11. Qc2 {[%clk 0:02:52]}  Ng4 {[%clk 0:02:59]} 12. Nb3 {[%clk 0:02:47]}  Nxb3 {[%clk 0:02:39]} 13. axb3 {[%clk 0:02:47]}  c6 {[%clk 0:02:38]} 14. h3 {[%clk 0:02:45]}  Ne5 {[%clk 0:02:36]} 15. f4 {[%clk 0:02:42]}  Nd7 {[%clk 0:02:36]} 16. Be3 {[%clk 0:02:42]}  a6 {[%clk 0:02:35]} 17. Rad1 {[%clk 0:02:42]}  Qc7 {[%clk 0:02:32]} 18. b4 {[%clk 0:02:39]}  b5 {[%clk 0:02:30]} 19. cxb5 {[%clk 0:02:27]}  cxb5 {[%clk 0:02:12]} 20. e5 {[%clk 0:02:26]} 1-0


[Site "https://www.chess.com"]

[Event "Titled Tuesday Blitz June 13 Early 2023"]
[White "Zaksaite, Salomeja"]
[Black "Srdanovic, Jovana"]
[WhiteFideId "12801496"]
[BlackFideId "954810"]
[WhiteElo "2059"]
[BlackElo "2155"]
[Result "1-0"]
[Round "3"]
[TimeControl "180+2"]
[Date "2023.06.13"]
[WhiteClock "0:00:04"]
[BlackClock "0:00:02"]
[Board "145"]

1. e4 {[%clk 0:02:56]}  e5 {[%clk 0:02:49]} 2. Nf3 {[%clk 0:02:56]}  Nc6 {[%clk 0:02:48]} 3. Bc4 {[%clk 0:02:56]}  Bc5 {[%clk 0:02:47]} 4. d3 {[%clk 0:02:54]}  Nf6 {[%clk 0:02:46]} 5. Nbd2 {[%clk 0:02:52]}  d6 {[%clk 0:02:42]} 6. c3 {[%clk 0:02:50]}  h6 {[%clk 0:02:37]} 7. h3 {[%clk 0:02:46]}  a6 {[%clk 0:02:37]} 8. Bb3 {[%clk 0:02:46]}  Ba7 {[%clk 0:02:28]} 9. Nf1 {[%clk 0:02:45]}  d5 {[%clk 0:02:07]} 10. Qe2 {[%clk 0:02:44]}  dxe4 {[%clk 0:01:55]} 11. dxe4 {[%clk 0:02:43]}  Qe7 {[%clk 0:01:51]} 12. g4 {[%clk 0:02:37]}  Be6 {[%clk 0:01:40]} 13. Ng3 {[%clk 0:02:36]}  O-O-O {[%clk 0:01:20]} 14. Nf5 {[%clk 0:02:33]}  Bxf5 {[%clk 0:01:02]} 15. gxf5 {[%clk 0:02:32]}  g6 {[%clk 0:00:55]} 16. fxg6 {[%clk 0:02:13]}  fxg6 {[%clk 0:00:55]} 17. Be3 {[%clk 0:02:11]}  Bxe3 {[%clk 0:00:51]} 18. Qxe3 {[%clk 0:02:11]}  Nh5 {[%clk 0:00:44]} 19. Bd5 {[%clk 0:01:54]}  Nf4 {[%clk 0:00:41]} 20. Rg1 {[%clk 0:01:43]}  Nxd5 {[%clk 0:00:24]} 21. exd5 {[%clk 0:01:41]}  Rxd5 {[%clk 0:00:25]} 22. Rxg6 {[%clk 0:01:40]}  e4 {[%clk 0:00:19]} 23. Nd2 {[%clk 0:01:26]}  Re8 {[%clk 0:00:18]} 24. O-O-O {[%clk 0:01:24]}  Rd3 {[%clk 0:00:18]} 25. Qxh6 {[%clk 0:01:22]}  e3 {[%clk 0:00:15]} 26. fxe3 {[%clk 0:01:22]}  Rxe3 {[%clk 0:00:16]} 27. Rg7 {[%clk 0:01:15]}  Qe5 {[%clk 0:00:14]} 28. Nc4 {[%clk 0:01:09]}  Rxc3+ {[%clk 0:00:10]} 29. bxc3 {[%clk 0:01:02]}  Qxc3+ {[%clk 0:00:11]} 30. Kb1 {[%clk 0:01:01]}  Qxc4 {[%clk 0:00:12]} 31. Qh7 {[%clk 0:00:27]}  Nb4 {[%clk 0:00:08]} 32. Rg2 {[%clk 0:00:13]}  Kb8 {[%clk 0:00:08]} 33. Qd7 {[%clk 0:00:09]}  Rc8 {[%clk 0:00:07]} 34. Qd4 {[%clk 0:00:05]}  Qb5 {[%clk 0:00:04]} 35. Rb2 {[%clk 0:00:04]}  Qc6 {[%clk 0:00:03]} 36. Qxb4 {[%clk 0:00:03]}  Qg6+ {[%clk 0:00:02]} 37. Ka1 {[%clk 0:00:03]}  b6 {[%clk 0:00:03]} 38. Rdb1 {[%clk 0:00:04]}  Qc6 {[%clk 0:00:03]} 39. Qb3 {[%clk 0:00:05]}  Ka7 {[%clk 0:00:03]} 40. Rc2 {[%clk 0:00:04]}  Qe6 {[%clk 0:00:03]} 41. Qxe6 {[%clk 0:00:04]}  Rb8 {[%clk 0:00:03]} 42. Qd7 {[%clk 0:00:04]}  Rb7 {[%clk 0:00:03]} 43. Rxc7 {[%clk 0:00:04]}  a5 {[%clk 0:00:03]} 44. Rxb7+ {[%clk 0:00:04]}  Ka8 {[%clk 0:00:04]} 45. R7xb6 {[%clk 0:00:04]}  a4 {[%clk 0:00:02]} 46. Qb7# {[%clk 0:00:04]} 1-0


[Site "https://www.chess.com"]

[Event "Titled Tuesday Blitz June 13 Early 2023"]
[White "Camilla_Lee"]
[Black "Bommini Mounika Akshaya"]
[BlackFideId "25019872"]
[WhiteElo "2564"]
[BlackElo "2087"]
[Result "1-0"]
[Round "3"]
[TimeControl "180+2"]
[Date "2023.06.13"]
[WhiteClock "0:00:05"]
[BlackClock "0:00:00"]
[Board "146"]

1. e4 {[%clk 0:03:00]}  Nc6 {[%clk 0:02:57]} 2. d4 {[%clk 0:03:00]}  e5 {[%clk 0:02:57]} 3. dxe5 {[%clk 0:02:58]}  Nxe5 {[%clk 0:02:56]} 4. Nc3 {[%clk 0:02:58]}  Ng6 {[%clk 0:02:55]} 5. Be3 {[%clk 0:02:57]}  Nf6 {[%clk 0:02:43]} 6. f3 {[%clk 0:02:55]}  d6 {[%clk 0:02:32]} 7. Qd2 {[%clk 0:02:47]}  Be7 {[%clk 0:02:29]} 8. O-O-O {[%clk 0:02:45]}  O-O {[%clk 0:02:29]} 9. Bc4 {[%clk 0:02:41]}  a6 {[%clk 0:02:04]} 10. h4 {[%clk 0:02:41]}  b5 {[%clk 0:02:02]} 11. Bb3 {[%clk 0:02:41]}  h5 {[%clk 0:02:00]} 12. g4 {[%clk 0:02:30]}  hxg4 {[%clk 0:01:57]} 13. h5 {[%clk 0:02:14]}  Ne5 {[%clk 0:01:57]} 14. f4 {[%clk 0:02:14]}  b4 {[%clk 0:01:47]} 15. fxe5 {[%clk 0:01:30]}  bxc3 {[%clk 0:01:44]} 16. Qxc3 {[%clk 0:01:30]}  Nxe4 {[%clk 0:01:41]} 17. Qc6 {[%clk 0:01:30]}  Bf5 {[%clk 0:01:36]} 18. Ne2 {[%clk 0:01:04]}  Bg5 {[%clk 0:01:17]} 19. Nf4 {[%clk 0:00:49]}  Rb8 {[%clk 0:00:56]} 20. Qxa6 {[%clk 0:00:31]}  Qe8 {[%clk 0:00:28]} 21. exd6 {[%clk 0:00:20]}  cxd6 {[%clk 0:00:28]} 22. Rhe1 {[%clk 0:00:20]}  Rc8 {[%clk 0:00:18]} 23. Nd5 {[%clk 0:00:17]}  Qd8 {[%clk 0:00:15]} 24. Kb1 {[%clk 0:00:11]}  Re8 {[%clk 0:00:14]} 25. Bd4 {[%clk 0:00:06]}  Nd2+ {[%clk 0:00:12]} 26. Ka1 {[%clk 0:00:04]}  Nxb3+ {[%clk 0:00:11]} 27. cxb3 {[%clk 0:00:05]}  Rxe1 {[%clk 0:00:10]} 28. Rxe1 {[%clk 0:00:06]}  Qd7 {[%clk 0:00:08]} 29. Nb6 {[%clk 0:00:04]}  Re8 {[%clk 0:00:07]} 30. Rxe8+ {[%clk 0:00:03]}  Qxe8 {[%clk 0:00:07]} 31. Qa8 {[%clk 0:00:02]}  Qxa8 {[%clk 0:00:05]} 32. Nxa8 {[%clk 0:00:03]}  g3 {[%clk 0:00:04]} 33. Nc7 {[%clk 0:00:03]}  g2 {[%clk 0:00:04]} 34. a4 {[%clk 0:00:03]}  Bf6 {[%clk 0:00:02]} 35. Bg1 {[%clk 0:00:03]}  Bd8 {[%clk 0:00:03]} 36. Nd5 {[%clk 0:00:03]}  Bc2 {[%clk 0:00:03]} 37. Ka2 {[%clk 0:00:02]}  Be4 {[%clk 0:00:02]} 38. Nc3 {[%clk 0:00:02]}  d5 {[%clk 0:00:02]} 39. b4 {[%clk 0:00:02]}  Bf3 {[%clk 0:00:02]} 40. a5 {[%clk 0:00:02]}  Bc7 {[%clk 0:00:02]} 41. a6 {[%clk 0:00:03]}  d4 {[%clk 0:00:02]} 42. a7 {[%clk 0:00:03]}  dxc3 {[%clk 0:00:02]} 43. bxc3 {[%clk 0:00:03]}  Ba8 {[%clk 0:00:02]} 44. c4 {[%clk 0:00:04]}  Bd6 {[%clk 0:00:01]} 45. c5 {[%clk 0:00:04]}  Bg3 {[%clk 0:00:00]} 46. b5 {[%clk 0:00:05]} 1-0


[Site "https://www.chess.com"]

[Event "Titled Tuesday Blitz June 13 Early 2023"]
[White "Deng, Henry"]
[Black "EdmundPlayer"]
[WhiteFideId "30965454"]
[WhiteElo "2557"]
[BlackElo "2249"]
[Result "1-0"]
[Round "3"]
[TimeControl "180+2"]
[Date "2023.06.13"]
[WhiteClock "0:00:24"]
[BlackClock "0:00:00"]
[Board "151"]

1. e4 {[%clk 0:03:00]}  e6 {[%clk 0:02:58]} 2. d4 {[%clk 0:02:59]}  d5 {[%clk 0:02:57]} 3. Nd2 {[%clk 0:03:00]}  h6 {[%clk 0:02:57]} 4. Ngf3 {[%clk 0:03:00]}  Nf6 {[%clk 0:02:56]} 5. e5 {[%clk 0:03:00]}  Nfd7 {[%clk 0:02:56]} 6. Bd3 {[%clk 0:02:59]}  c5 {[%clk 0:02:56]} 7. c3 {[%clk 0:02:59]}  Nc6 {[%clk 0:02:55]} 8. O-O {[%clk 0:03:00]}  g5 {[%clk 0:02:54]} 9. Nb1 {[%clk 0:02:41]}  g4 {[%clk 0:02:35]} 10. Ne1 {[%clk 0:02:29]}  cxd4 {[%clk 0:02:27]} 11. cxd4 {[%clk 0:02:29]}  h5 {[%clk 0:02:09]} 12. Be3 {[%clk 0:02:24]}  Qb6 {[%clk 0:01:44]} 13. Nd2 {[%clk 0:02:16]}  Qxb2 {[%clk 0:01:37]} 14. Nc2 {[%clk 0:02:05]}  Qb6 {[%clk 0:01:28]} 15. f3 {[%clk 0:02:03]}  Bh6 {[%clk 0:01:19]} 16. Bxh6 {[%clk 0:01:49]}  Rxh6 {[%clk 0:01:20]} 17. Rb1 {[%clk 0:01:49]}  Qd8 {[%clk 0:01:14]} 18. fxg4 {[%clk 0:01:41]}  Qh4 {[%clk 0:01:08]} 19. Qf3 {[%clk 0:01:07]}  Nd8 {[%clk 0:01:05]} 20. gxh5 {[%clk 0:01:03]}  Rxh5 {[%clk 0:00:59]} 21. h3 {[%clk 0:01:02]}  Qg5 {[%clk 0:00:56]} 22. Rf2 {[%clk 0:00:56]}  Rh8 {[%clk 0:00:45]} 23. Ne3 {[%clk 0:00:54]}  Qg7 {[%clk 0:00:41]} 24. Rc1 {[%clk 0:00:48]}  b6 {[%clk 0:00:32]} 25. Bb5 {[%clk 0:00:44]}  a6 {[%clk 0:00:28]} 26. Nxd5 {[%clk 0:00:35]}  exd5 {[%clk 0:00:24]} 27. Qxd5 {[%clk 0:00:34]}  axb5 {[%clk 0:00:23]} 28. Qxa8 {[%clk 0:00:33]}  Bb7 {[%clk 0:00:23]} 29. Qa3 {[%clk 0:00:32]}  Rxh3 {[%clk 0:00:22]} 30. Qxh3 {[%clk 0:00:31]}  Bd5 {[%clk 0:00:20]} 31. Rc7 {[%clk 0:00:25]}  Ne6 {[%clk 0:00:19]} 32. Rc8+ {[%clk 0:00:26]}  Ke7 {[%clk 0:00:19]} 33. Qh4+ {[%clk 0:00:26]}  Ng5 {[%clk 0:00:18]} 34. Rf5 {[%clk 0:00:25]}  f6 {[%clk 0:00:10]} 35. exf6+ {[%clk 0:00:25]}  Nxf6 {[%clk 0:00:10]} 36. Qxg5 {[%clk 0:00:24]}  Qxg5 {[%clk 0:00:09]} 37. Rxg5 {[%clk 0:00:25]}  Kd7 {[%clk 0:00:00]} 38. Rf8 {[%clk 0:00:24]} 1-0


[Site "https://www.chess.com"]

[Event "Titled Tuesday Blitz June 13 Early 2023"]
[White "Omelja, Artem"]
[Black "rionelG"]
[WhiteFideId "14119846"]
[WhiteElo "2404"]
[BlackElo "2236"]
[Result "1-0"]
[Round "3"]
[TimeControl "180+2"]
[Date "2023.06.13"]
[WhiteClock "0:00:17"]
[BlackClock "0:00:01"]
[Board "152"]

1. e4 {[%clk 0:03:00]}  c5 {[%clk 0:02:59]} 2. Nf3 {[%clk 0:02:52]}  d6 {[%clk 0:02:59]} 3. Bb5+ {[%clk 0:02:52]}  Nd7 {[%clk 0:02:59]} 4. d4 {[%clk 0:02:52]}  Nf6 {[%clk 0:02:58]} 5. e5 {[%clk 0:02:51]}  cxd4 {[%clk 0:02:55]} 6. Qxd4 {[%clk 0:02:43]}  dxe5 {[%clk 0:02:43]} 7. Nxe5 {[%clk 0:02:42]}  a6 {[%clk 0:02:43]} 8. Nxd7 {[%clk 0:02:22]}  Bxd7 {[%clk 0:02:39]} 9. Bd3 {[%clk 0:02:21]}  Bc6 {[%clk 0:02:33]} 10. Qxd8+ {[%clk 0:02:22]}  Rxd8 {[%clk 0:02:32]} 11. O-O {[%clk 0:02:23]}  e6 {[%clk 0:02:30]} 12. a3 {[%clk 0:02:23]}  Be7 {[%clk 0:02:26]} 13. b4 {[%clk 0:02:21]}  O-O {[%clk 0:02:26]} 14. Bb2 {[%clk 0:02:21]}  Nd7 {[%clk 0:02:17]} 15. Nd2 {[%clk 0:02:14]}  Bf6 {[%clk 0:02:17]} 16. Bxf6 {[%clk 0:02:13]}  Nxf6 {[%clk 0:02:17]} 17. Nb3 {[%clk 0:02:10]}  Rd6 {[%clk 0:02:14]} 18. Nc5 {[%clk 0:02:09]}  Rfd8 {[%clk 0:02:12]} 19. h3 {[%clk 0:02:08]}  Kf8 {[%clk 0:02:09]} 20. a4 {[%clk 0:02:05]}  Rd5 {[%clk 0:01:52]} 21. Rfb1 {[%clk 0:01:56]}  a5 {[%clk 0:01:40]} 22. Ne4 {[%clk 0:01:45]}  axb4 {[%clk 0:01:19]} 23. Nxf6 {[%clk 0:01:44]}  gxf6 {[%clk 0:01:18]} 24. Rxb4 {[%clk 0:01:44]}  f5 {[%clk 0:01:14]} 25. Rab1 {[%clk 0:01:40]}  Ra8 {[%clk 0:01:06]} 26. Bb5 {[%clk 0:01:32]}  Bxb5 {[%clk 0:01:04]} 27. Rxb5 {[%clk 0:01:33]}  Rxb5 {[%clk 0:00:52]} 28. Rxb5 {[%clk 0:01:33]}  Rxa4 {[%clk 0:00:50]} 29. Rxb7 {[%clk 0:01:32]}  Rc4 {[%clk 0:00:46]} 30. Rb8+ {[%clk 0:01:28]}  Kg7 {[%clk 0:00:45]} 31. Rb2 {[%clk 0:01:28]}  Kf6 {[%clk 0:00:45]} 32. Kf1 {[%clk 0:01:28]}  f4 {[%clk 0:00:24]} 33. Ke2 {[%clk 0:01:27]}  Ke5 {[%clk 0:00:18]} 34. Kd3 {[%clk 0:01:27]}  Rd4+ {[%clk 0:00:18]} 35. Ke2 {[%clk 0:01:23]}  Rc4 {[%clk 0:00:17]} 36. Rb5+ {[%clk 0:01:22]}  Kf6 {[%clk 0:00:16]} 37. Kd3 {[%clk 0:01:20]}  Rc6 {[%clk 0:00:15]} 38. c4 {[%clk 0:01:20]}  e5 {[%clk 0:00:11]} 39. c5 {[%clk 0:01:05]}  Kf5 {[%clk 0:00:11]} 40. Kc4 {[%clk 0:01:05]}  Ke4 {[%clk 0:00:06]} 41. Rb1 {[%clk 0:01:00]}  f6 {[%clk 0:00:06]} 42. Re1+ {[%clk 0:00:59]}  Kf5 {[%clk 0:00:05]} 43. Kd5 {[%clk 0:01:00]}  Rc8 {[%clk 0:00:05]} 44. c6 {[%clk 0:01:00]}  Rd8+ {[%clk 0:00:06]} 45. Kc5 {[%clk 0:01:00]}  Rd2 {[%clk 0:00:06]} 46. c7 {[%clk 0:00:59]}  Rc2+ {[%clk 0:00:04]} 47. Kd6 {[%clk 0:00:59]}  Rd2+ {[%clk 0:00:04]} 48. Ke7 {[%clk 0:00:58]}  Rc2 {[%clk 0:00:05]} 49. Kd7 {[%clk 0:00:23]}  Rd2+ {[%clk 0:00:05]} 50. Kc8 {[%clk 0:00:23]}  Rxf2 {[%clk 0:00:06]} 51. Rb1 {[%clk 0:00:23]}  Rxg2 {[%clk 0:00:06]} 52. Kb7 {[%clk 0:00:18]}  Rg7 {[%clk 0:00:06]} 53. Kc6 {[%clk 0:00:17]}  Rg8 {[%clk 0:00:05]} 54. Rb8 {[%clk 0:00:16]}  Rg1 {[%clk 0:00:06]} 55. c8=Q+ {[%clk 0:00:16]}  Ke4 {[%clk 0:00:05]} 56. Rb4+ {[%clk 0:00:15]}  Ke3 {[%clk 0:00:04]} 57. Qf5 {[%clk 0:00:16]}  Rc1+ {[%clk 0:00:03]} 58. Kd6 {[%clk 0:00:16]}  Ra1 {[%clk 0:00:03]} 59. Qe4+ {[%clk 0:00:15]}  Kf2 {[%clk 0:00:02]} 60. Rb2+ {[%clk 0:00:16]}  Kg3 {[%clk 0:00:01]} 61. Qg2+ {[%clk 0:00:16]}  Kh4 {[%clk 0:00:01]} 62. Qg4# {[%clk 0:00:17]} 1-0


[Site "https://www.chess.com"]